bitfinex/quotes_ETHUSD_20240730
["timestamp","ask_amount","ask_price","bid_price","bid_amount"]
[1722307129683,3.75658388,3306.3,3306.2,35.0]
[1722307130181,2.49335584,3306.3,3306.2,35.0]
[1722307130880,3.75745761,3306.3,3306.2,35.0]
[1722307131320,3.75745761,3306.3,3306.2,40.30431288]
[1722307131321,0.07373584,3306.3,3306.2,40.30431288]
[1722307131492,0.70582701,3306.3,3306.2,42.72400288]
[1722307131691,0.07373584,3306.3,3306.2,42.72400288]
[1722307132017,0.63209117,3306.5,3306.3,2.41957]
[1722307132220,0.63209117,3306.6,3306.4,2.41954]
[1722307132383,0.63209117,3306.5,3306.2,2.2553]
[1722307132583,0.63209117,3306.3,3305.9,2.41991]
[1722307132913,0.63209117,3306.4,3306.2,37.41969]
[1722307133112,0.63209117,3306.5,3306.3,3.04901288]
[1722307133335,0.63209117,3306.5,3306.3,0.06048287]
[1722307133625,0.63209117,3306.6,3306.4,37.41954]
[1722307133826,0.63209117,3306.6,3306.5,2.47995065]
[1722307134229,0.63209117,3306.7,3306.6,2.4194]
[1722307134435,0.948184,3306.8,3306.6,2.4194]
[1722307134821,0.63215788,3306.7,3306.6,2.4194]
[1722307135021,0.948184,3306.8,3306.6,2.4194]
[1722307135809,0.63212668,3306.7,3306.6,5.46841288]
[1722307136133,0.63212668,3306.7,3306.6,5.5288907]
[1722307136644,0.948184,3306.8,3306.6,5.5288907]
[1722307136836,0.63212173,3306.7,3306.6,5.5288907]
[1722307137001,0.63212173,3306.7,3306.6,3.1094907]
[1722307137205,0.948184,3306.7,3306.4,35.0]
[1722307137408,0.63210031,3306.5,3306.4,35.0]
[1722307138019,0.63210031,3306.5,3306.4,37.41954]
[1722307138202,0.63210031,3306.6,3306.4,37.41954]
[1722307139015,0.63210031,3306.6,3306.5,2.47995171]
[1722307139213,0.63210031,3306.7,3306.6,2.4194]
[1722307139425,0.63210031,3306.7,3306.6,2.47987859]
[1722307139627,0.63210031,3306.7,3306.6,37.47987859]
[1722307140327,0.63210031,3306.7,3306.6,35.06047859]
[1722307140551,0.948184,3306.7,3306.6,35.06047859]
[1722307140940,0.948184,3306.8,3306.6,37.47985859]
[1722307141251,0.94767963,3306.7,3306.6,35.06047859]
[1722307141642,0.94767963,3306.7,3306.6,35.0]
[1722307142039,1.26357285,3306.8,3306.6,35.0]
[1722307142261,0.94765447,3306.7,3306.6,35.0]
[1722307142473,3.36697055,3306.7,3306.6,35.0]
[1722307142670,7.53266,3306.7,3306.6,35.0]
[1722307142830,9.42805088,3306.7,3306.6,35.0]
[1722307143167,11.84738088,3306.7,3306.6,35.0]
[1722307143329,9.95199,3306.7,3306.6,35.0]
[1722307143527,2.41933,3306.7,3306.6,35.0]
[1722307143764,4.31492032,3306.7,3306.6,35.0]
[1722307144193,4.91012126,3306.7,3306.6,35.0]
[1722307144375,6.80571158,3306.7,3306.6,35.0]
[1722307144664,7.60412126,3306.7,3306.6,35.0]
[1722307145167,2.41994,3305.9,3305.0,2.42057]
[1722307145332,0.63210276,3305.5,3305.2,2.42039]
[1722307145533,0.63210276,3305.3,3305.1,2.42047]
[1722307145864,0.07156059,3305.2,3305.1,2.42047]
[1722307146065,0.63210276,3305.3,3305.2,2.42042]
[1722307146265,0.63210276,3305.3,3305.2,3.04901288]
[1722307146856,0.94872001,3305.5,3305.2,3.1095175]
[1722307147032,0.70388533,3305.3,3305.2,5.5299375]
[1722307147365,0.63249857,3305.4,3305.3,2.42035]
[1722307147573,0.94880289,3305.4,3305.3,5.46936288]
[1722307147776,0.94880289,3305.5,3305.3,5.46936288]
[1722307148186,1.02015655,3305.4,3305.3,5.46936288]
[1722307148593,0.94880289,3305.4,3305.3,5.46936288]
[1722307149597,0.94880289,3305.4,3305.3,3.04901288]
[1722307149797,1.26507053,3305.4,3305.1,35.0]
[1722307150095,0.94908933,3305.2,3305.1,35.0]
[1722307150915,0.94908933,3305.3,3305.1,37.4205]
[1722307151076,0.94908933,3305.3,3305.2,2.4809248]
[1722307151409,1.58181555,3305.7,3305.3,2.42035]
[1722307151410,0.94908933,3305.4,3305.3,2.42035]
[1722307151610,0.94908933,3305.4,3305.3,37.48085208]
[1722307152363,0.94908933,3305.5,3305.4,2.42028]
[1722307152561,1.26545244,3305.6,3305.4,2.42028]
[1722307152967,1.26545244,3305.6,3305.5,35.0]
[1722307153473,1.26545244,3305.6,3305.5,37.4202]
[1722307153672,1.58149383,3305.7,3305.5,37.4202]
[1722307153673,1.58149383,3305.7,3305.5,35.0]
[1722307153978,1.58149383,3305.6,3305.5,35.0]
[1722307154693,4.00162383,3305.6,3305.5,35.0]
[1722307155007,2.42013,3305.6,3305.5,35.0]
[1722307155774,4.84026,3305.6,3305.5,35.0]
[1722307156020,7.41407068,3305.6,3305.5,35.0]
[1722307156366,2.42025,3305.5,3304.2,2.2857]
[1722307156686,0.94831361,3304.4,3304.2,5.61128168]
[1722307156881,1.26441815,3304.5,3304.3,35.0]
[1722307157270,0.94796018,3304.4,3304.3,37.42107]
[1722307157694,0.63187394,3304.4,3304.3,37.42107]
[1722307157926,0.07079481,3304.4,3304.3,42.89116288]
[1722307158128,0.63189021,3304.4,3304.3,42.89116288]
[1722307158629,0.63189021,3304.5,3304.4,2.42101]
[1722307159275,2.42043,3305.2,3304.4,2.42101]
[1722307159568,0.94764177,3304.6,3304.5,3.10952967]
[1722307159774,0.94764177,3304.6,3304.5,3.04901288]
[1722307160087,1.26352236,3304.6,3304.3,38.04901288]
[1722307160271,0.94731021,3304.5,3304.3,35.0]
[1722307160473,0.63144947,3304.4,3304.3,35.0]
[1722307160671,0.94731021,3304.5,3304.3,35.0]
[1722307161375,0.63147974,3304.5,3304.4,2.42101]
[1722307161570,0.63147974,3304.5,3304.4,5.47002288]
[1722307162306,0.63147974,3304.7,3304.6,2.42086]
[1722307162507,0.63147974,3304.8,3304.7,2.42079]
[1722307162672,0.63147974,3304.9,3304.8,2.42072]
[1722307162872,0.94731021,3305.1,3304.7,37.91100638]
[1722307162873,0.94731021,3305.1,3304.9,2.42064]
[1722307163090,0.94731021,3305.0,3304.7,2.91100638]
[1722307163307,0.94731021,3304.8,3304.5,2.42092]
[1722307163621,0.63129179,3304.8,3304.6,2.42085]
[1722307163826,0.63129179,3304.7,3304.6,2.42085]
[1722307164019,0.94731021,3304.8,3304.6,35.0]
[1722307164326,1.26352236,3304.9,3304.4,4.70669]
[1722307164327,0.94731021,3304.7,3304.4,4.70669]
[1722307164637,1.26352236,3304.9,3304.4,4.70669]
[1722307164638,0.63122039,3304.6,3304.4,5.50991517]
[1722307164789,0.63122039,3304.6,3304.5,35.0]
[1722307164993,0.94731021,3304.7,3304.5,35.0]
[1722307165302,0.70165897,3304.6,3304.5,2.42093]
[1722307165510,2.42051,3305.1,3304.4,0.80322517]
[1722307165720,0.63112848,3304.5,3304.3,2.42108]
[1722307166094,0.07050493,3304.4,3304.3,2.42108]
[1722307166295,0.63112848,3304.5,3304.3,35.0]
[1722307166589,0.07050493,3304.4,3304.3,2.42108]
[1722307167103,0.0705008,3304.4,3304.3,37.42108]
[1722307167315,0.63112848,3304.6,3304.3,37.42108]
[1722307167502,0.0705008,3304.4,3304.3,2.42108]
[1722307167840,0.63112848,3304.5,3303.9,2.42136]
[1722307167996,0.70162928,3304.4,3303.9,2.42136]
[1722307168324,0.63112848,3304.3,3303.9,2.42136]
[1722307168625,0.07038895,3304.3,3304.2,35.0]
[1722307170123,0.70063418,3304.3,3304.2,35.0]
[1722307170294,0.94536785,3304.4,3304.2,35.0]
[1722307170518,3.68148047,3304.5,3304.2,35.0]
[1722307170519,1.01562425,3304.3,3304.2,35.0]
[1722307171327,3.43670425,3304.3,3304.2,35.0]
[1722307171626,1.01487344,3304.3,3304.2,35.0]
[1722307172592,0.0702564,3304.3,3304.2,37.42116]
[1722307172893,0.62980359,3304.5,3304.2,40.47017288]
[1722307173087,0.62980359,3304.5,3304.3,0.06052054]
[1722307173331,0.06996228,3304.4,3304.3,0.06052054]
[1722307173490,0.62980359,3304.6,3304.3,0.06052054]
[1722307173693,0.06996228,3304.4,3304.3,0.06052054]
[1722307173886,0.62998885,3304.6,3304.3,0.06052054]
[1722307174127,0.06996228,3304.4,3304.3,2.48160054]
[1722307174537,0.63001201,3304.7,3304.3,2.48160054]
[1722307174734,0.07006171,3304.4,3304.3,2.48160054]
[1722307174938,0.63001201,3304.6,3304.3,2.48160054]
[1722307175148,0.63001201,3304.6,3304.2,35.0]
[1722307175424,0.63001201,3304.5,3304.2,35.0]
[1722307175632,0.63001201,3304.5,3304.1,2.42118]
[1722307176124,0.07009899,3304.4,3304.2,2.48167167]
[1722307176297,0.07009899,3304.4,3304.3,2.42108]
[1722307176496,0.63001201,3304.6,3304.5,2.42094]
[1722307176695,0.63001201,3304.7,3304.6,2.42086]
[1722307176888,0.63001201,3305.0,3304.8,2.42072]
[1722307177101,0.63001201,3305.1,3304.8,2.48123151]
[1722307177502,0.63001201,3305.1,3304.9,2.42064]
[1722307177995,0.63001201,3305.0,3304.6,2.42086]
[1722307178245,0.63001201,3305.0,3304.8,2.42071]
[1722307178554,0.63001201,3305.0,3304.7,3.04901288]
[1722307178755,0.63001201,3305.0,3304.8,2.42071]
[1722307178985,0.63001201,3305.0,3304.9,2.48115181]
[1722307179184,8.31501802,3305.2,3305.0,2.42057]
[1722307179185,0.63001201,3305.1,3305.0,2.42057]
[1722307179392,0.63001201,3305.2,3304.9,2.42063]
[1722307179701,0.63001201,3305.1,3304.7,2.42078]
[1722307179987,0.63001201,3305.1,3305.0,2.42057]
[1722307180200,1.26002403,3305.4,3305.0,2.48107783]
[1722307180201,0.63001201,3305.2,3305.0,2.48107783]
[1722307180356,0.63001201,3305.2,3304.8,2.909548]
[1722307180692,0.63001201,3305.1,3304.9,2.42064]
[1722307181055,0.63001201,3305.1,3305.0,2.42057]
[1722307181581,0.63001201,3305.1,3304.9,0.35146021]
[1722307181784,0.63001201,3305.0,3304.9,0.2909518]
[1722307181988,0.63001201,3305.2,3305.0,4.84114]
[1722307182160,0.63001201,3305.3,3305.1,0.51320918]
[1722307182804,0.63001201,3305.3,3305.0,2.48107669]
[1722307183116,0.63001201,3305.3,3305.0,2.42057]
[1722307183314,0.63001201,3305.3,3304.8,2.4207]
[1722307183315,0.63001201,3305.1,3304.8,2.4207]
[1722307183469,0.63001201,3305.0,3304.8,2.4207]
[1722307183806,0.63001201,3305.0,3304.8,2.75002171]
[1722307184265,0.63001201,3305.0,3304.9,2.42064]
[1722307184696,0.63095539,3305.0,3304.9,2.42064]
[1722307185413,0.63095539,3305.0,3304.9,4.84128]
[1722307185764,0.63095539,3305.1,3305.0,2.42057]
[1722307185966,0.63095539,3305.1,3305.0,3.00418059]
[1722307186615,0.63095539,3305.1,3305.0,2.94367428]
[1722307186903,0.94643309,3305.2,3305.1,2.4205]
[1722307188481,1.26191078,3305.3,3305.1,2.4205]
[1722307188676,1.26191078,3305.2,3305.1,2.4205]
[1722307189210,1.33267661,3305.2,3305.1,2.95692443]
[1722307189382,0.07076583,3305.2,3305.1,4.841]
[1722307189571,1.01850326,3305.2,3305.1,4.841]
[1722307189773,0.94773743,3305.3,3305.2,2.42042]
[1722307190628,1.26191078,3305.4,3305.3,2.42035]
[1722307191117,24.51038,3306.1,3305.3,2.42035]
[1722307191322,1.26372105,3305.4,3305.3,2.42035]
[1722307191623,1.26372105,3305.4,3305.1,2.4205]
[1722307191788,1.57972083,3305.5,3305.1,2.4205]
[1722307191789,0.94787768,3305.2,3305.1,2.4205]
[1722307194634,0.94787768,3305.2,3304.9,2.42062]
[1722307194820,0.94772633,3305.0,3304.9,2.42062]
[1722307195218,0.94772633,3305.0,3304.9,4.84126]
[1722307195429,0.94772633,3305.1,3305.0,2.42057]
[1722307195629,1.26383691,3305.2,3305.0,2.42057]
[1722307195938,1.26383691,3305.1,3305.0,2.42057]
[1722307196346,1.26383691,3305.2,3305.0,2.42057]
[1722307196948,1.26383691,3305.2,3305.1,2.4205]
[1722307197519,1.58001202,3305.3,3305.0,2.42057]
[1722307197720,1.26413675,3305.1,3305.0,2.42057]
[1722307197984,1.5802023,3305.2,3304.6,2.468]
[1722307198264,0.63205551,3304.7,3304.6,4.88886]
[1722307198635,0.94808326,3304.8,3304.6,2.42086]
[1722307199148,0.94808326,3304.8,3304.7,2.42079]
[1722307199352,0.94808326,3304.9,3304.8,2.42072]
[1722307200138,1.26411102,3305.0,3304.9,2.42064]
[1722307200539,1.26411102,3305.0,3304.7,2.42079]
[1722307200847,0.94834262,3304.9,3304.8,2.42072]
[1722307202162,0.94834262,3304.9,3304.8,4.84144]
[1722307202887,0.94834262,3305.0,3304.9,2.42064]
[1722307203095,1.26411102,3305.1,3305.0,2.42057]
[1722307203248,1.26411102,3305.1,3305.0,4.84114]
[1722307203447,0.94870196,3305.1,3305.0,4.84114]
[1722307203644,0.94870196,3305.1,3305.0,4.9016481]
[1722307203874,0.6325068,3305.1,3305.0,4.9016481]
[1722307204077,0.07076583,3305.1,3305.0,8.04791291]
[1722307204399,0.63249506,3305.4,3305.0,6.14626481]
[1722307204649,0.07083207,3305.1,3305.0,5.56683481]
[1722307204941,0.94870196,3305.5,3305.3,2.42035]
[1722307205138,0.94870196,3305.5,3305.4,4.84056]
[1722307205484,0.94870196,3305.7,3305.6,4.84026]
[1722307205917,0.94870196,3305.7,3305.6,2.42013]
[1722307206629,1.26411102,3305.8,3305.6,2.42013]
[1722307206981,1.26411102,3305.8,3305.7,4.84012]
[1722307207426,1.26411102,3305.9,3305.8,4.83996]
[1722307208692,1.58070989,3306.1,3305.9,2.41991]
[1722307208693,1.26411102,3306.0,3305.9,2.41991]
[1722307209134,1.26419421,3306.0,3305.9,2.41991]
[1722307209597,1.26400883,3306.0,3305.9,2.41991]
[1722307209798,1.58001104,3306.0,3305.7,2.42005]
[1722307210009,1.58001104,3306.0,3305.5,2.42015]
[1722307210010,1.26396724,3305.8,3305.5,2.42015]
[1722307210322,1.26396724,3305.7,3305.4,2.42027]
[1722307210490,0.9479111,3305.6,3305.5,2.4202]
[1722307210694,1.26396724,3305.6,3305.5,2.4202]
[1722307211015,1.26396724,3305.6,3305.1,4.68236]
[1722307211212,1.26396724,3305.6,3305.1,2.42046]
[1722307211213,0.63213763,3305.2,3305.1,2.42046]
[1722307211418,0.63213763,3305.2,3305.0,2.42056]
[1722307211419,0.94820644,3305.3,3305.2,2.42042]
[1722307212174,2.41999,3305.8,3305.2,2.42042]
[1722307212427,0.94839888,3305.3,3305.2,2.42042]
[1722307212811,0.94839888,3305.3,3305.0,2.42056]
[1722307213018,0.94839888,3305.1,3305.0,2.42056]
[1722307213199,0.94839888,3305.2,3305.1,2.4205]
[1722307213689,0.94839888,3305.2,3305.1,4.841]
[1722307213890,0.94839888,3305.3,3305.2,4.84084]
[1722307214086,0.94839888,3305.3,3305.2,4.90134493]
[1722307214318,0.63210504,3305.4,3305.3,4.8407]
[1722307214488,0.63210504,3305.5,3305.4,4.84056]
[1722307214826,0.63210504,3305.5,3305.4,5.6254945]
[1722307215292,1.26426903,3305.8,3305.7,2.42006]
[1722307215490,8.63426903,3305.9,3305.8,2.41998]
[1722307217195,7.37,3305.9,3305.8,2.41998]
[1722307217501,8.95033629,3305.9,3305.8,2.41998]
[1722307217901,8.95033629,3305.9,3305.7,0.06049525]
[1722307218111,1.58033629,3305.8,3305.7,0.06049525]
[1722307218286,7.37,3305.9,3305.6,2.42008]
[1722307218493,1.58218727,3305.7,3305.6,2.42008]
[1722307218919,1.65346644,3305.7,3305.6,2.42008]
[1722307219493,0.07127917,3305.7,3305.4,2.42022]
[1722307219754,1.26654869,3305.5,3305.4,2.42022]
[1722307220471,1.3377989,3305.5,3305.4,2.42022]
[1722307220679,0.07125021,3305.5,3305.4,2.42022]
[1722307220841,1.33813867,3305.5,3305.4,2.42022]
[1722307221046,0.07125021,3305.5,3305.4,2.42022]
[1722307221245,0.07125021,3305.5,3305.4,4.9010011]
[1722307221456,1.02144903,3305.5,3305.4,5.39110121]
[1722307221775,1.02173241,3305.5,3305.4,5.39110121]
[1722307221942,0.07125021,3305.5,3305.4,5.39110121]
[1722307222677,1.02173241,3305.5,3305.4,5.39110121]
[1722307223243,0.07125021,3305.5,3305.4,5.39110121]
[1722307223780,0.07125021,3305.5,3305.4,7.67950121]
[1722307225240,0.07125021,3305.5,3305.4,10.09978121]
[1722307225443,1.02247276,3305.5,3305.4,10.09978121]
[1722307225684,0.07125021,3305.5,3305.4,10.09978121]
[1722307227138,1.02237235,3305.5,3305.4,10.09978121]
[1722307227484,0.07125021,3305.5,3305.4,10.09978121]
[1722307227894,0.07125021,3305.5,3305.4,5.33060011]
[1722307228102,0.07125021,3305.5,3305.4,7.75088011]
[1722307228399,0.07142817,3305.5,3305.4,5.33060011]
[1722307228705,0.70571262,3305.5,3305.4,5.39109625]
[1722307228844,1.02286827,3305.5,3305.4,4.8405]
[1722307229042,1.34001497,3305.5,3305.4,4.8405]
[1722307229494,1.65716167,3305.5,3305.4,2.42022]
[1722307229644,0.07142817,3305.5,3305.4,2.42022]
[1722307229839,0.07142817,3305.5,3305.2,2.42042]
[1722307229840,1.65716167,3305.5,3305.3,2.42032]
[1722307230043,1.65716167,3305.5,3305.4,2.42028]
[1722307230290,1.65671639,3305.5,3305.4,2.42028]
[1722307230443,1.65671639,3305.5,3304.7,5.4694]
[1722307230444,0.07142817,3305.5,3304.7,5.4694]
[1722307230647,0.63411397,3304.8,3304.7,2.42075]
[1722307230884,0.95117096,3304.9,3304.8,2.42072]
[1722307231384,0.95117096,3304.9,3304.8,4.84144]
[1722307231586,0.95117096,3304.9,3304.8,2.42072]
[1722307231870,0.95117096,3304.9,3304.8,4.84144]
[1722307233545,0.95117096,3304.9,3304.8,2.42072]
[1722307233956,0.10193476,3304.9,3304.8,2.42072]
[1722307234162,0.95089354,3304.9,3304.8,2.42072]
[1722307234372,0.10193476,3304.9,3304.8,2.42072]
[1722307234837,1.05289216,3304.9,3304.8,4.84144]
[1722307235137,1.05289216,3304.9,3304.8,2.904864]
[1722307235521,0.10193476,3304.9,3304.8,2.904864]
[1722307236327,1.05307238,3304.9,3304.8,2.904864]
[1722307237443,0.10193476,3304.9,3304.8,2.904864]
[1722307238337,0.10193476,3304.9,3304.8,5.325584]
[1722307238338,1.05313368,3304.9,3304.8,5.325584]
[1722307238492,1.05313368,3304.9,3304.8,2.42072]
[1722307239007,1.05313368,3304.9,3304.8,4.84144]
[1722307239202,1.05313368,3304.9,3304.8,2.42072]
[1722307239709,0.10193476,3304.9,3304.8,2.42072]
[1722307241219,0.10193476,3304.9,3304.8,4.84144]
[1722307241731,0.10193476,3304.9,3304.8,5.325584]
[1722307242808,0.10193476,3304.9,3304.8,2.904864]
[1722307243139,0.10193476,3304.9,3304.8,35.0]
[1722307243140,1.68720524,3304.9,3304.8,35.0]
[1722307243336,0.10193476,3304.9,3304.8,35.0]
[1722307243499,4.32282458,3305.1,3304.8,35.0]
[1722307243500,1.90232458,3305.0,3304.8,35.0]
[1722307243700,2.52246711,3304.9,3304.8,35.0]
[1722307243901,4.42386961,3304.9,3304.8,35.0]
[1722307244602,6.84450961,3304.9,3304.8,35.0]
[1722307244811,2.67622307,3304.9,3304.8,35.0]
[1722307245094,0.25558307,3304.9,3304.8,35.0]
[1722307246094,0.10182711,3304.9,3304.8,35.0]
[1722307246299,1.8995776,3304.9,3304.8,35.0]
[1722307246537,2.00118524,3304.9,3304.8,35.0]
[1722307246943,0.10160764,3304.9,3304.8,35.0]
[1722307247145,1.89955281,3305.0,3304.8,35.0]
[1722307247364,0.10155381,3304.9,3304.8,35.0]
[1722307247625,7.37,3305.5,3304.9,2.42064]
[1722307247626,1.89929486,3305.1,3304.9,2.42064]
[1722307247932,1.58292722,3305.1,3304.9,5.46965288]
[1722307248140,1.58292722,3305.1,3305.0,2.42057]
[1722307248445,1.58292722,3305.1,3305.0,37.42057]
[1722307248938,1.68429058,3305.1,3305.0,37.42057]
[1722307249143,0.10136336,3305.1,3305.0,37.42057]
[1722307249319,1.5821112,3305.1,3305.0,37.42057]
[1722307249519,1.68356981,3305.1,3305.0,35.0]
[1722307249933,0.10145861,3305.1,3305.0,35.0]
[1722307250821,0.10145861,3305.1,3305.0,37.42057]
[1722307253147,1.36714431,3305.1,3305.0,42.35705659]
[1722307253343,1.05080882,3305.1,3305.0,42.35705659]
[1722307253501,0.73437581,3305.1,3305.0,42.35705659]
[1722307254049,0.10145861,3305.1,3305.0,42.35705659]
[1722307254280,0.73437581,3305.1,3305.0,42.35705659]
[1722307254704,0.10145861,3305.1,3305.0,42.35705659]
[1722307255494,0.73447957,3305.1,3305.0,42.35705659]
[1722307256295,0.10145861,3305.1,3305.0,42.35705659]
[1722307256565,1.26556475,3305.1,3305.0,42.35705659]
[1722307256763,1.26556475,3305.2,3305.1,2.4205]
[1722307257017,1.26556475,3305.2,3305.1,7.43594007]
[1722307257173,0.94920666,3305.2,3305.1,4.841]
[1722307257373,0.94920666,3305.2,3305.1,39.841]
[1722307258874,1.26556475,3305.3,3305.2,2.42042]
[1722307259610,1.26556475,3305.3,3305.2,37.42042]
[1722307260217,1.58168061,3305.3,3305.2,35.0]
[1722307260828,4.77555,3305.3,3305.2,35.0]
[1722307260984,7.34944478,3305.3,3305.2,35.0]
[1722307261326,4.92909478,3305.3,3305.2,35.0]
[1722307263629,7.34944478,3305.3,3305.2,35.0]
[1722307263800,9.56269631,3305.3,3305.2,35.0]
[1722307264129,7.70090027,3305.3,3305.2,35.0]
[1722307264968,7.45085039,3305.3,3305.2,35.0]
[1722307265167,7.70088133,3305.3,3305.2,35.0]
[1722307265369,7.45085039,3305.3,3305.2,35.0]
[1722307266627,5.03050039,3305.3,3305.2,35.0]
[1722307267088,2.61015039,3305.3,3305.2,35.0]
[1722307267249,0.25495039,3305.3,3305.2,35.0]
[1722307267570,0.2549456,3305.3,3305.2,35.0]
[1722307267730,0.10140561,3305.3,3305.2,35.0]
[1722307267931,1.99787394,3305.3,3305.2,35.0]
[1722307268240,1.68205957,3305.3,3305.2,35.48559383]
[1722307268571,1.68205957,3305.3,3305.2,37.90601383]
[1722307268935,1.36604124,3305.3,3305.2,37.90601383]
[1722307269429,1.36604124,3305.3,3305.2,35.48559383]
[1722307269628,0.10140561,3305.3,3305.2,35.48559383]
[1722307270030,1.89646833,3305.5,3305.2,35.0]
[1722307270346,1.89646833,3305.5,3304.8,2.42069]
[1722307270347,1.89646833,3305.4,3304.8,2.4207]
[1722307270656,1.2651026,3304.9,3304.8,2.4207]
[1722307271174,1.2651026,3304.9,3304.8,35.0]
[1722307271175,1.36665443,3304.9,3304.8,35.0]
[1722307271383,1.68292729,3304.9,3304.8,35.0]
[1722307271534,0.10156297,3304.9,3304.8,35.0]
[1722307273561,2.52220297,3304.9,3304.8,35.0]
[1722307273759,4.41984016,3304.9,3304.8,35.0]
[1722307273997,0.10156297,3304.9,3304.8,35.0]
[1722307274170,1.99891099,3304.9,3304.8,35.0]
[1722307274695,2.67562438,3304.9,3304.8,35.0]
[1722307276064,5.09626438,3304.9,3304.8,35.0]
[1722307276465,10.21080418,3304.9,3304.8,35.0]
[1722307276719,2.42073,3304.8,3303.3,2.42177]
[1722307277014,0.94801444,3303.5,3303.4,2.42174]
[1722307277312,1.26406035,3303.6,3303.4,2.42174]
[1722307277510,1.26406035,3303.5,3303.4,2.42174]
[1722307277817,1.04855251,3303.5,3303.4,37.42174]
[1722307277977,1.04855251,3303.5,3303.4,40.47075288]
[1722307278563,0.10090864,3303.5,3303.4,40.47075288]
[1722307279079,0.10090864,3303.5,3303.4,38.04901288]
[1722307279388,1.26406035,3303.6,3303.4,35.0]
[1722307279614,1.04761237,3303.5,3303.2,2.42187]
[1722307279766,0.63133194,3303.3,3303.2,2.42187]
[1722307280124,0.63133194,3303.3,3303.2,37.42187]
[1722307280440,0.63126114,3303.3,3303.2,40.47088288]
[1722307280737,0.63126114,3303.4,3303.2,35.0]
[1722307281025,0.10056471,3303.3,3303.1,3.0]
[1722307281186,0.94662907,3303.2,3303.1,3.0]
[1722307281388,1.04670071,3303.2,3303.1,38.0]
[1722307281686,0.63085977,3303.2,3303.1,38.0]
[1722307282026,1.26252229,3303.3,3303.1,35.0]
[1722307282319,0.73078311,3303.2,3303.1,2.42196]
[1722307282712,0.73078311,3303.2,3303.1,37.42196]
[1722307282912,0.09999703,3303.2,3303.1,37.42196]
[1722307283083,0.63078608,3303.2,3303.1,37.42196]
[1722307283532,2.42151,3303.8,3303.1,37.42196]
[1722307283715,2.42151,3303.8,3303.1,2.42196]
[1722307283716,0.630601,3303.2,3303.1,2.42196]
[1722307284081,0.630601,3303.3,3302.9,2.4221]
[1722307284320,0.73052343,3303.2,3303.0,2.42203]
[1722307284928,0.73052343,3303.2,3303.1,35.0]
[1722307284929,0.09992243,3303.2,3303.1,35.0]
[1722307285103,0.73052343,3303.2,3303.1,35.0]
[1722307285282,0.630601,3303.2,3303.1,35.0]
[1722307285520,0.630601,3303.3,3303.1,35.0]
[1722307285720,0.630601,3303.3,3303.0,2.42203]
[1722307285882,0.09992243,3303.2,3303.0,2.42203]
[1722307286223,0.630601,3303.3,3303.1,35.0]
[1722307286621,0.630601,3303.3,3303.0,2.42203]
[1722307286827,0.630601,3303.3,3303.2,2.42189]
[1722307287035,0.630601,3303.4,3303.2,35.0]
[1722307287187,0.630601,3303.3,3303.2,35.0]
[1722307287731,0.62969753,3303.4,3303.2,35.0]
[1722307287882,0.62969753,3303.4,3303.2,2.42188]
[1722307288083,0.62969753,3303.4,3303.3,2.42182]
[1722307288285,0.62969753,3303.5,3303.3,37.42182]
[1722307288719,0.62969753,3303.5,3303.1,2.42192]
[1722307289340,0.62969753,3303.5,3303.4,35.0]
[1722307292511,0.62969753,3303.6,3303.4,35.0]
[1722307293296,0.62898873,3303.6,3303.4,35.0]
[1722307294033,0.09990587,3303.5,3303.4,35.0]
[1722307295794,0.72893911,3303.5,3303.4,35.0]
[1722307296217,3.15060911,3303.5,3303.4,35.0]
[1722307296391,0.72893911,3303.5,3303.4,35.0]
[1722307297654,3.15060911,3303.5,3303.4,35.0]
[1722307297937,0.72893911,3303.5,3303.4,35.0]
[1722307299805,0.09990587,3303.5,3303.4,35.0]
[1722307300227,0.72880604,3303.5,3303.4,35.0]
[1722307302551,0.09990587,3303.5,3303.4,35.0]
[1722307302976,1.04325613,3303.5,3303.4,35.0]
[1722307303321,0.09990587,3303.5,3303.4,35.0]
[1722307303771,0.72935497,3303.5,3303.4,35.0]
[1722307303938,0.7293576,3303.5,3303.4,35.0]
[1722307304133,0.09990587,3303.5,3303.4,35.0]
[1722307304467,1.04325613,3303.5,3303.4,35.0]
[1722307305537,3.46492613,3303.5,3303.4,35.0]
[1722307306172,2.52157587,3303.5,3303.4,35.0]
[1722307306881,1.0446456,3303.5,3303.4,35.0]
[1722307307743,0.09990587,3303.5,3303.4,35.0]
[1722307307942,2.52157587,3303.5,3303.4,35.0]
[1722307308158,4.09611432,3303.5,3303.4,35.0]
[1722307308331,7.37234587,3303.5,3303.4,35.0]
[1722307308672,10.37234587,3303.5,3303.4,35.0]
[1722307309258,11.49634587,3303.5,3303.4,35.0]
[1722307309554,13.38598053,3303.5,3303.4,35.0]
[1722307310268,2.79914351,3303.5,3303.4,35.0]
[1722307310470,1.36020478,3303.5,3303.4,35.0]
[1722307310670,0.09990587,3303.5,3303.4,35.0]
[1722307311377,1.36020478,3303.5,3303.4,35.0]
[1722307312587,1.36060211,3303.5,3303.4,35.0]
[1722307313499,0.09990587,3303.5,3303.4,35.0]
[1722307313714,1.67577617,3303.5,3303.4,35.0]
[1722307314075,4.09744617,3303.5,3303.4,35.0]
[1722307314320,6.51911617,3303.5,3303.4,35.0]
[1722307314500,9.83429023,3303.5,3303.4,35.0]
[1722307315510,7.94324587,3303.5,3303.4,35.0]
[1722307316901,5.52157587,3303.5,3302.7,2.42225]
[1722307317095,0.94731123,3302.8,3302.7,2.42225]
[1722307317308,1.26308164,3302.9,3302.7,37.42225]
[1722307317516,1.26308164,3302.8,3302.7,35.0]
[1722307317830,1.67852989,3302.8,3302.7,35.0]
[1722307318816,0.09967784,3302.8,3302.7,35.0]
[1722307319315,6.74073947,3302.8,3302.7,35.0]
[1722307319499,5.09746024,3302.8,3302.7,35.0]
[1722307319685,5.09744451,3302.8,3302.7,35.0]
[1722307320716,7.30988723,3302.8,3302.7,35.0]
[1722307321274,5.09744451,3302.8,3302.7,35.0]
[1722307321709,5.3481958,3302.8,3302.7,35.0]
[1722307321938,5.09744451,3302.8,3302.7,35.0]
[1722307322110,5.34822366,3302.8,3302.7,35.0]